bitfinex/quotes_ETHUSD_20250223
["timestamp","ask_amount","ask_price","bid_price","bid_amount"]
[1740326953984,3.6671,2798.4,2797.8,2.85932]
[1740326954616,2.85898,2798.2,2797.7,4.169141]
[1740326954817,2.85919,2798.0,2797.4,3.66265]
[1740326955211,2.85919,2798.0,2797.5,3.0]
[1740326955418,0.8083,2797.9,2797.1,0.8029]
[1740326955619,2.64127113,2798.0,2796.9,5.23]
[1740326955620,0.8083,2797.6,2796.9,5.23]
[1740326955817,0.8083,2797.0,2796.5,0.8029]
[1740326956021,0.8083,2797.0,2796.5,3.6636]
[1740326956194,0.8083,2797.0,2796.5,0.8029]
[1740326956388,0.8083,2797.0,2796.6,2.8606]
[1740326957486,0.8083,2797.0,2796.5,0.8029]
[1740326957487,6.1983,2797.5,2796.5,0.8029]
[1740326957834,0.8083,2798.0,2797.4,3.66262]
[1740326958018,6.57042105,2798.0,2797.3,3.0]
[1740326958185,6.57042105,2798.0,2797.1,0.8029]
[1740326958387,6.1983,2798.0,2797.5,2.85962]
[1740326958588,5.39,2798.0,2797.8,2.85932]
[1740326958818,5.39,2798.0,2797.7,3.66237]
[1740326958988,5.39,2798.0,2797.9,2.85928]
[1740326959190,0.8083,2798.3,2797.9,2.85928]
[1740326959617,5.39,2798.4,2798.0,2.8591]
[1740326959822,8.83957113,2798.5,2798.0,2.8591]
[1740326960021,8.83957113,2798.5,2797.8,2.85934]
[1740326960208,8.83957113,2798.5,2798.0,2.85917]
[1740326960412,11.69825113,2798.5,2797.9,0.366224]
[1740326960743,2.85877,2798.4,2797.9,0.366224]
[1740326960931,11.69825113,2798.5,2797.7,3.8029]
[1740326960932,8.83957113,2798.5,2797.7,3.8029]
[1740326961115,11.69831113,2798.5,2798.0,2.85915]
[1740326961714,9.05704,2798.5,2798.0,2.85915]
[1740326962324,6.1983,2798.5,2798.1,2.85906]
[1740326962512,6.1983,2798.5,2798.0,5.71825]
[1740326962712,6.1983,2798.5,2798.1,3.430885]
[1740326962940,6.1983,2798.5,2798.0,2.85911]
[1740326963151,6.1983,2798.5,2798.2,2.85896]
[1740326963152,5.39,2798.5,2798.2,2.85896]
[1740326963500,5.39,2798.5,2798.3,2.85885]
[1740326963723,5.39,2798.5,2798.2,2.85896]
[1740326964219,5.39,2798.5,2798.4,2.85877]
[1740326964504,5.39,2798.5,2798.4,3.510833]
[1740326965227,0.8133,2798.9,2798.6,2.85854]
[1740326966129,0.005,2798.9,2798.6,2.85854]
[1740326966547,0.005,2798.9,2798.6,3.0]
[1740326967120,0.005,2798.9,2798.7,2.8584]
[1740326967325,0.005,2798.9,2798.8,3.4442]
[1740326967524,0.005,2798.9,2798.8,2.85836]
[1740326970949,0.005,2798.9,2798.7,0.7538]
[1740326971163,0.832,2798.9,2797.8,0.8249]
[1740326971325,3.30099004,2798.8,2798.2,2.85897]
[1740326971518,6.222,2798.9,2798.5,2.85858]
[1740326971519,5.395,2798.9,2798.5,2.85858]
[1740326971852,5.395,2798.9,2798.7,2.85845]
[1740326972148,0.005,2798.9,2798.3,0.8249]
[1740326972447,0.827,2798.8,2798.3,3.68371]
[1740326972654,0.827,2798.8,2798.4,3.0]
[1740326973354,0.827,2798.8,2798.4,5.85877]
[1740326973526,0.827,2798.8,2798.4,3.0]
[1740326973852,3.68543,2798.8,2798.1,3.68393]
[1740326974019,2.85857,2798.6,2798.1,3.68393]
[1740326974219,5.71723,2798.6,2798.1,0.8249]
[1740326974535,2.85906,2798.2,2797.6,2.85958]
[1740326974850,2.85922,2798.0,2797.6,0.8249]
[1740326975066,2.85922,2798.0,2797.3,0.8249]
[1740326975552,2.85902,2798.2,2797.3,0.8249]
[1740326975851,2.85918,2798.0,2797.2,2.85991]
[1740326976044,2.85929,2797.9,2797.3,2.85982]
[1740326976244,2.85929,2797.9,2796.8,0.8249]
[1740326976245,0.827,2798.1,2797.4,0.8249]
[1740326976442,3.68608,2798.1,2797.6,2.85956]
[1740326976749,0.827,2798.1,2797.5,2.85959]
[1740326976921,0.827,2798.1,2797.6,0.368449]
[1740326977125,5.39,2798.2,2797.8,2.8593]
[1740326977325,5.39,2798.2,2797.4,3.8249]
[1740326977326,3.30099004,2798.1,2797.4,0.8249]
[1740326977545,2.85954,2797.7,2797.0,3.68503]
[1740326977752,2.85966,2797.6,2797.0,3.68503]
[1740326977954,2.85991,2797.3,2796.7,6.0549]
[1740326978127,2.85991,2797.3,2796.8,1.177598]
[1740326978322,2.85991,2797.3,2796.7,0.8249]
[1740326978541,2.85973,2797.5,2796.8,2.86034]
[1740326978860,2.85973,2797.5,2796.9,3.0]
[1740326979434,3.30099004,2797.5,2796.5,3.68558]
[1740326979660,0.827,2797.4,2796.5,3.68558]
[1740326979850,2.86008,2797.2,2796.2,0.8249]
[1740326980036,2.8599,2797.3,2796.7,3.0]
[1740326980236,2.86003,2797.2,2796.7,3.0]
[1740326980545,2.8603,2797.0,2796.7,3.0]
[1740326980720,2.86012,2797.1,2796.6,3.0]
[1740326980923,2.86007,2797.2,2796.6,3.0]
[1740326981180,9.07681,2797.4,2796.7,2.8605]
[1740326981336,2.86001,2797.2,2796.6,3.872144]
[1740326981542,2.8599,2797.3,2796.7,2.86045]
[1740326984261,2.86003,2797.2,2796.7,2.86045]
[1740326984643,2.86003,2797.2,2796.6,3.872144]
[1740326985429,2.86016,2797.1,2796.6,3.872144]
[1740326985851,2.86003,2797.2,2796.6,3.872144]
[1740326986558,2.86003,2797.2,2796.7,2.8605]
[1740326986778,2.86003,2797.2,2796.6,3.872144]
[1740326986970,2.63653544,2796.9,2796.2,0.8249]
[1740326987272,2.63653544,2796.9,2796.5,2.86065]
[1740326987450,5.66120631,2797.2,2796.8,2.86038]
[1740326988290,5.39,2797.2,2796.8,2.86038]
[1740326988565,3.69136,2797.4,2797.0,2.86013]
[1740326988566,5.39,2797.4,2797.0,2.86013]
[1740326988966,3.69159,2797.2,2796.7,0.7788]
[1740326989262,5.39,2797.4,2796.9,3.0]
[1740326989463,5.39,2797.4,2797.0,2.86019]
[1740326990065,5.39,2797.4,2796.7,0.7788]
[1740326990066,5.39,2797.4,2796.7,3.7788]
[1740326990268,5.39,2797.4,2796.6,2.86058]
[1740326990269,0.26892365,2797.7,2796.4,0.8138]
[1740326990480,0.26892365,2797.7,2796.3,8.78]
[1740326990481,5.65191362,2797.8,2797.3,2.85985]
[1740326991067,5.65191362,2797.8,2797.3,5.71966]
[1740326991449,5.65191362,2797.8,2797.3,2.85981]
[1740326991976,0.7777,2798.0,2797.5,2.85963]
[1740326992374,5.49543544,2798.3,2797.7,2.85948]
[1740326992582,0.26876156,2798.2,2797.7,2.85948]
[1740326992782,3.12776156,2798.2,2797.7,2.85948]
[1740326992951,4.08871998,2798.3,2797.8,2.85938]
[1740326993158,9.02647,2798.4,2797.8,2.85931]
[1740326993359,6.1677,2798.4,2797.9,2.85918]
[1740326993795,0.7777,2798.6,2797.9,3.145098]
[1740326994055,2.63653544,2798.7,2798.0,0.8138]
[1740326994303,2.63653544,2798.7,2798.2,2.85889]
[1740326995609,2.63653544,2798.7,2798.1,3.0]
[1740326995759,5.49500544,2798.7,2798.1,3.0]
[1740326996292,3.83066015,2798.7,2797.5,2.85962]
[1740326996624,2.85956,2797.7,2797.2,0.8138]
[1740326997011,5.39,2797.8,2797.6,2.85958]
[1740326997377,5.39,2797.8,2797.4,2.85978]
[1740326997378,5.39,2797.8,2797.5,3.0]
[1740326997878,5.39,2797.8,2797.6,2.85953]
[1740326998194,5.39,2797.8,2797.7,6.67329]
[1740326998587,5.39,2797.8,2797.7,3.8138]
[1740326998872,5.39,2797.8,2797.7,3.0]
[1740327000635,5.39,2797.8,2797.7,2.85949]
[1740327001404,5.39,2797.8,2797.7,3.0]
[1740327002097,5.39,2797.8,2797.6,5.71905]
[1740327002098,5.39,2797.8,2797.4,0.8138]
[1740327002304,5.39,2797.8,2797.7,2.85949]
[1740327002504,6.27322544,2798.2,2797.5,2.85969]
[1740327002840,6.27322544,2798.2,2797.6,2.85958]
[1740327003041,3.41423544,2798.2,2797.7,3.0]
[1740327003835,3.41423544,2798.2,2797.6,3.0]
[1740327003993,3.41423544,2798.2,2797.7,2.85949]
[1740327004193,3.41423544,2798.2,2797.7,5.7189]
[1740327004408,3.41423544,2798.2,2797.7,2.85941]
[1740327005813,3.41423544,2798.2,2797.6,3.0]
[1740327006021,2.8595,2797.7,2797.1,3.66031]
[1740327006214,0.8329,2797.7,2797.1,3.66031]
[1740327006414,0.8329,2797.7,2797.4,3.0]
[1740327006803,6.32877544,2797.9,2797.4,3.0]
[1740327007153,0.8329,2798.1,2797.7,2.85942]
[1740327007338,2.63653544,2798.2,2797.7,3.65972]
[1740327007849,2.63653544,2798.2,2797.7,0.8003]
[1740327008003,2.63653544,2797.9,2797.4,0.8003]
[1740327008204,2.85951,2797.7,2797.2,3.0]
[1740327008405,2.85978,2797.5,2797.0,0.8003]
[1740327008719,2.8599,2797.3,2796.7,6.52125]
[1740327009050,2.8599,2797.3,2796.3,8.36182]
[1740327009051,2.86031,2796.9,2796.4,0.8003]
[1740327009257,8.02653544,2797.3,2796.4,0.8003]
[1740327009404,10.88648544,2797.3,2796.7,2.8605]
[1740327009905,2.86008,2797.2,2796.5,5.86063]
[1740327010108,2.86028,2797.0,2796.4,3.6611]
[1740327010527,2.8602,2797.1,2796.4,3.6611]
[1740327010833,2.86031,2796.9,2796.4,4.02721]
[1740327011037,8.02653544,2797.3,2796.4,4.02721]
[1740327011038,13.74641544,2797.3,2796.7,3.0]
[1740327011366,10.88643544,2797.3,2796.7,5.86049]
[1740327012367,0.70856921,2796.8,2796.7,5.86049]
[1740327012533,10.88644544,2797.3,2796.5,2.86071]
[1740327012731,8.02653544,2797.3,2796.8,2.8604]
[1740327013262,2.63653544,2797.0,2796.4,3.8003]
[1740327013563,8.35709544,2797.0,2796.4,3.0]
[1740327013771,2.63653544,2797.0,2796.6,3.0]
[1740327014717,5.49680544,2797.0,2796.5,3.0]
[1740327014920,0.789,2796.9,2796.1,0.7567]
[1740327015231,0.789,2796.9,2796.5,3.0]
[1740327015441,5.39,2797.0,2796.6,2.86053]
[1740327015645,5.39,2797.0,2796.4,5.86076]
[1740327015843,5.39,2797.0,2796.4,8.72148]
[1740327016063,2.86047,2796.8,2796.2,2.86101]
[1740327016244,12.07668244,2797.0,2796.5,2.86066]
[1740327016245,8.02653544,2797.0,2796.5,2.86066]
[1740327016441,8.02653544,2797.0,2796.5,2.86065]
[1740327016655,8.02653544,2797.0,2796.5,2.86063]
[1740327017271,10.88674544,2797.0,2796.5,2.86063]
[1740327018381,8.25021,2797.0,2796.4,2.86078]
[1740327018752,11.11049,2797.0,2796.3,2.8609]
[1740327018953,8.25021,2797.0,2796.4,2.86075]
[1740327019507,5.39,2797.0,2796.6,5.72122]
[1740327019657,5.39,2797.0,2796.6,2.86061]
[1740327020110,5.39,2797.0,2796.7,2.86049]
[1740327020400,8.02653544,2797.1,2796.7,2.86049]
[1740327020552,8.02653544,2797.1,2796.5,2.86069]
[1740327020753,8.02653544,2797.1,2796.5,2.86065]
[1740327020975,8.02653544,2797.1,2796.6,2.86056]
[1740327021171,10.88673544,2797.1,2796.5,2.86065]
[1740327021516,2.86023,2797.0,2796.5,2.86065]
[1740327021670,9.50685184,2797.1,2796.5,2.86065]
[1740327021870,9.50685184,2797.1,2796.6,2.86051]
[1740327022212,9.50685184,2797.1,2796.5,2.86065]
[1740327022402,2.86021,2797.0,2796.5,2.86065]
[1740327023802,5.49700544,2796.8,2796.1,0.7567]
[1740327024370,0.789,2796.9,2796.2,5.86102]
[1740327024802,0.789,2796.9,2796.4,2.86074]
[1740327025497,0.789,2796.9,2796.2,5.86102]
[1740327025701,2.86074,2796.5,2796.2,3.0]
[1740327025873,0.7716,2796.4,2795.6,5.9804]
[1740327026120,2.86098,2796.3,2795.7,2.86144]
[1740327026269,2.86102,2796.2,2795.6,3.61194]
[1740327026471,2.86102,2796.2,2795.6,4.000334]
[1740327026871,0.7716,2796.4,2795.6,1.138794]
[1740327027076,0.7716,2796.4,2795.9,2.86124]
[1740327027475,3.63245,2796.4,2795.9,2.86124]
[1740327028172,0.7716,2796.4,2796.0,2.86122]
[1740327029496,0.7716,2796.4,2795.7,2.86148]
[1740327029497,3.13195216,2796.3,2795.8,3.0]
[1740327029659,2.86103,2796.2,2795.8,3.0]
[1740327030072,2.86103,2796.2,2795.6,4.000404]
[1740327030273,2.86103,2796.2,2795.6,2.86161]
[1740327030467,0.27101216,2796.3,2795.5,3.0]
[1740327030692,0.27101216,2796.3,2796.0,2.86121]
[1740327030926,0.27101216,2796.3,2796.2,2.86102]
[1740327031115,0.7716,2796.4,2796.1,2.86112]
[1740327031601,5.39,2796.5,2795.9,0.7953]
[1740327031803,5.39,2796.5,2796.3,2.8609]
[1740327032010,0.8324,2796.7,2796.4,2.86073]
[1740327032174,0.8324,2796.7,2796.4,2.92884267]
[1740327032527,0.8324,2796.7,2796.5,2.86067]
[1740327032874,0.8324,2796.7,2796.4,0.06811267]
[1740327033205,0.8324,2796.7,2796.3,2.8609]
[1740327033378,0.8324,2796.7,2796.5,0.06923647]
[1740327033576,0.8324,2796.7,2796.4,2.86082]
[1740327033793,0.8324,2797.0,2796.6,2.92975647]
[1740327034021,6.2224,2797.0,2796.6,2.86052]
[1740327034315,0.27276193,2796.9,2796.7,0.06943648]
[1740327034499,6.2224,2797.0,2796.7,0.06943648]
[1740327034702,6.2224,2797.0,2796.8,2.86039]
[1740327035103,0.8324,2797.2,2796.9,0.06943648]
[1740327035301,0.8324,2797.2,2797.1,2.8601]
[1740327035817,5.39,2797.6,2797.3,2.8598]
[1740327036124,6.48944078,2797.9,2797.5,2.85969]
[1740327036410,6.2224,2797.9,2797.5,2.85969]
[1740327036700,6.2224,2797.9,2797.6,0.06917929]
[1740327036902,5.39,2798.1,2797.8,2.85932]
[1740327037077,6.2224,2798.2,2797.9,2.85925]
[1740327037282,6.2224,2798.2,2798.0,2.85916]
[1740327037485,5.39,2798.2,2798.0,2.85916]
[1740327037698,5.39,2798.7,2798.1,2.85908]
[1740327037889,5.39,2798.7,2798.5,2.85864]
[1740327038074,6.2224,2798.8,2798.3,2.85887]
[1740327038276,6.2224,2798.8,2798.6,0.06840803]
[1740327038495,6.2224,2798.8,2798.4,2.85875]
[1740327038712,6.2224,2798.8,2798.7,0.06840803]
[1740327038909,6.2224,2798.8,2798.5,2.85866]
[1740327039212,5.39,2798.8,2798.5,5.71726]
[1740327039417,5.39,2798.8,2798.6,0.06698934]
[1740327040287,0.005,2798.9,2798.6,0.06698934]
[1740327040985,0.005,2798.9,2798.7,2.92536934]
[1740327041213,0.005,2798.9,2798.7,0.64539227]
[1740327041611,0.005,2798.9,2798.7,0.06698934]
[1740327041816,0.0014238,2798.9,2798.7,2.92542934]
[1740327043382,2.8597538,2798.9,2798.7,0.06698934]
[1740327043618,0.8324,2798.8,2798.7,0.06698934]
[1740327043922,0.8324,2798.8,2798.3,5.85887]
[1740327044230,0.8324,2798.8,2798.5,3.0]
[1740327044396,5.3914238,2798.9,2798.5,3.0]
[1740327044602,5.3914238,2798.9,2798.6,2.85851]
[1740327044797,5.3914238,2798.9,2798.6,2.9252234]
[1740327045020,5.3914238,2798.9,2798.8,2.85836]
[1740327045411,5.3914238,2798.9,2798.8,2.92263026]
[1740327045612,5.3914238,2798.9,2798.8,4.26024429]
[1740327047417,5.3914238,2798.9,2798.8,7.26024429]
[1740327049346,0.0014238,2798.9,2798.8,7.26024429]
[1740327049527,0.0014238,2798.9,2798.8,7.97095467]
[1740327050304,0.0014238,2798.9,2798.8,8.24195467]
[1740327051836,0.0014238,2798.9,2798.8,7.48245467]
[1740327052131,0.0014238,2798.9,2798.8,0.06427026]
[1740327052513,0.0014238,2798.9,2798.8,2.85836]
[1740327052711,0.0014238,2798.9,2798.8,2.92077511]
[1740327053158,0.0014238,2798.9,2798.8,3.75007511]
[1740327057317,0.0014238,2798.9,2798.8,6.75007511]
[1740327057519,0.0014238,2798.9,2798.8,7.99677662]
[1740327060551,0.73231699,2798.9,2798.8,7.99677662]
[1740327060848,0.0014238,2798.9,2798.8,7.99677662]
[1740327062725,0.0014238,2798.9,2798.8,8.54677662]
[1740327063650,0.0014238,2798.9,2798.8,13.77677662]
[1740327063820,3.8e-06,2798.9,2798.8,13.77677662]
[1740327066561,3.8e-06,2798.9,2798.8,13.49777662]
[1740327067677,3.8e-06,2798.9,2798.8,14.04777662]
[1740327069744,3.8e-06,2798.9,2798.8,14.76875193]
[1740327069745,0.71396755,2798.9,2798.8,14.76875193]
[1740327073077,3.8e-06,2798.9,2798.8,14.76875193]
[1740327079351,3.8e-06,2798.9,2798.8,0.78339042]
[1740327079803,3.8e-06,2798.9,2798.8,3.64175042]
[1740327079952,3.8e-06,2798.9,2798.8,0.78339042]
[1740327080154,3.8e-06,2798.9,2798.8,3.64175042]
[1740327080385,3.8e-06,2798.9,2798.8,6.64175042]
[1740327081487,3.8e-06,2798.9,2798.8,7.59177146]
[1740327081878,3.8e-06,2798.9,2798.8,6.64175042]
[1740327083897,3.8e-06,2798.9,2798.8,7.98945042]
[1740327089712,3.8e-06,2798.9,2798.8,13.21945042]
[1740327096093,3.8e-06,2798.9,2798.8,12.69275042]
[1740327096906,3.8e-06,2798.9,2798.8,13.45185042]
[1740327097205,3.8e-06,2798.9,2798.8,15.3460674]
[1740327099815,3.8e-06,2798.9,2798.8,14.5869674]
[1740327100343,3.8e-06,2798.9,2798.8,14.3159674]
[1740327100530,3.8e-06,2798.9,2798.8,9.0859674]
[1740327101004,3.8e-06,2798.9,2798.8,8.5359674]
[1740327101213,3.8e-06,2798.9,2798.8,8.51878912]
[1740327101436,3.8e-06,2798.9,2798.8,3.62457214]
[1740327101832,3.8e-06,2798.9,2798.8,0.76621214]
[1740327102142,0.7591038,2798.9,2798.8,0.76621214]
[1740327102346,3.8e-06,2798.9,2798.8,3.62457214]
[1740327102555,3.8e-06,2798.9,2798.8,7.55872435]
[1740327103049,3.8e-06,2798.9,2798.8,8.10872435]
[1740327107173,0.7775038,2798.9,2798.8,6.62457214]
[1740327107664,3.8e-06,2798.9,2798.8,6.62457214]
[1740327114443,3.8e-06,2798.9,2798.8,3.76621214]
[1740327114643,0.8287038,2798.9,2798.8,3.76621214]
[1740327114843,0.8287038,2798.9,2798.8,6.62457214]
[1740327117574,3.8e-06,2798.9,2798.8,6.62457214]
[1740327122317,0.8287038,2798.9,2798.8,0.76621214]
[1740327122617,1.19939018,2798.9,2798.8,0.76621214]
[1740327122776,0.8287038,2798.9,2798.8,0.76621214]
[1740327132403,0.8287038,2798.9,2798.8,3.62457214]
[1740327132609,0.8287038,2798.9,2798.8,0.76621214]
[1740327134024,3.8e-06,2798.9,2798.8,3.62457214]
[1740327134783,3.8e-06,2798.9,2798.8,6.62457214]
[1740327135089,3.8e-06,2798.9,2798.8,8.63887535]
[1740327135495,3.8e-06,2798.9,2798.8,9.18887535]
[1740327135693,3.8e-06,2798.9,2798.8,14.41887535]
[1740327135900,3.8e-06,2798.9,2798.8,13.86887535]
[1740327136299,3.8e-06,2798.9,2798.8,14.41887535]
[1740327143564,0.02,2799.0,2798.9,3.0]
[1740327143758,0.02,2799.0,2798.9,7.88599354]
[1740327143964,0.02,2799.0,2798.9,7.92513141]
[1740327144271,0.1502965,2799.4,2799.3,7.17385]
[1740327144775,0.1502965,2799.4,2799.3,7.21289304]
[1740327144972,6.5e-06,2799.4,2799.3,12.44289304]
[1740327145286,6.5e-06,2799.4,2799.3,14.00007734]
[1740327146072,6.5e-06,2799.4,2799.3,16.63193671]
[1740327146375,0.70422685,2800.6,2799.6,0.766]
[1740327146595,0.70422685,2800.6,2800.5,7.17263]
[1740327146736,3.43109037,2801.6,2800.8,2.85625]
[1740327146737,0.7954,2801.2,2800.8,2.85625]
[1740327147079,0.7954,2801.2,2800.9,0.03793014]
[1740327147284,5.39,2802.0,2801.1,5.85602]
[1740327147480,5.39,2802.0,2801.1,2.85602]
[1740327147481,2.85541,2801.7,2801.1,2.85602]
[1740327147667,2.85541,2801.7,2801.2,0.03792066]
[1740327147864,2.85541,2801.7,2801.2,2.89383066]
[1740327148069,6.535078,2801.9,2801.2,2.89383066]
[1740327148408,0.824508,2801.9,2801.5,2.85561]
[1740327148687,3.20093674,2801.8,2801.2,0.03792066]
[1740327148838,3.20093674,2801.8,2801.6,0.03726682]
[1740327149038,3.20093674,2801.8,2801.1,5.71188]
[1740327149240,3.20093674,2801.8,2801.7,0.03726682]
[1740327149484,5.83279611,2801.8,2801.7,0.03726682]
[1740327149638,2.85565,2801.5,2800.8,2.85626]
[1740327149983,0.285565,2801.4,2801.0,2.85611]
[1740327150414,0.285565,2801.4,2801.1,0.03608926]
[1740327150415,0.766,2801.3,2801.1,0.03608926]
[1740327150576,3.62191,2801.2,2801.1,0.03608926]
[1740327150905,3.62191,2801.2,2800.5,3.0]
[1740327151204,0.766,2800.5,2799.9,2.85724]
[1740327151520,0.766,2800.3,2799.9,2.85717]
[1740327151711,5.39,2800.5,2800.4,2.85673]
[1740327151860,0.766,2800.6,2800.4,2.85673]
[1740327152063,0.766,2800.6,2800.5,2.85663]
[1740327152460,0.766,2800.6,2800.5,5.85663]
[1740327153001,0.766,2800.6,2800.5,3.0]
[1740327153367,0.766,2800.6,2799.8,0.271]
[1740327153565,0.766,2800.6,2800.2,2.85688]
[1740327153964,0.766,2800.6,2800.3,3.0]
[1740327154279,0.766,2800.6,2800.4,0.03524861]
[1740327154660,0.766,2800.4,2799.8,2.8573]
[1740327154863,0.766,2800.4,2799.5,5.501]
[1740327154864,0.766,2800.4,2800.1,5.85701]
[1740327155085,0.766,2800.8,2800.3,2.85683]
[1740327155296,1.93039794,2800.8,2800.3,2.85683]
[1740327155496,1.93039794,2800.8,2800.4,2.85673]
[1740327155707,0.766,2800.8,2800.5,2.85663]
[1740327155916,0.766,2800.8,2800.7,2.85642]
[1740327156208,0.766,2800.8,2800.6,5.85649]
[1740327156515,0.766,2800.8,2800.6,3.0]
[1740327156706,6.156,2801.0,2800.7,2.85642]
[1740327156917,0.766,2801.3,2800.9,2.85622]
[1740327157069,1.0801295,2801.3,2800.9,2.85622]
[1740327157277,1.0801295,2801.3,2800.8,3.0]
[1740327157500,0.766,2801.3,2800.8,3.0]
[1740327157915,5.39,2801.5,2801.2,2.85591]
[1740327158221,0.766,2801.5,2801.2,2.85591]
[1740327158717,0.766,2801.5,2801.2,5.71176]
[1740327159116,0.766,2801.5,2801.4,2.85571]
[1740327159304,0.766,2801.5,2801.2,2.85585]
[1740327159709,0.766,2801.5,2801.4,2.85571]
[1740327161428,0.766,2801.5,2801.1,5.85601]
[1740327161800,0.766,2801.5,2801.2,2.89098811]
[1740327162389,0.766,2801.5,2801.3,2.85572]
[1740327162898,0.766,2801.5,2801.4,0.03507811]
[1740327163095,0.766,2801.5,2801.1,5.85595]
[1740327163305,0.766,2801.5,2801.1,2.85595]
[1740327163484,0.766,2801.5,2801.2,3.03507811]
[1740327164096,0.766,2801.5,2801.2,5.89091811]
[1740327164303,0.766,2801.5,2801.3,2.85579]
[1740327164699,0.766,2801.5,2801.4,0.03507811]
[1740327165384,0.766,2801.5,2801.2,3.0]
[1740327165588,0.766,2801.5,2801.4,0.03507811]
[1740327165824,0.766,2801.5,2801.2,3.0]
[1740327166042,0.766,2801.5,2801.4,0.03507811]
[1740327166221,0.766,2801.5,2801.1,3.0]
[1740327166690,0.766,2801.5,2801.2,0.03507811]
[1740327170231,0.8048,2801.7,2801.3,2.85581]
[1740327170794,0.8048,2801.7,2801.4,0.03507811]
[1740327171537,0.8048,2801.7,2801.2,2.8559]
[1740327171706,0.8048,2801.7,2801.3,2.89087811]
[1740327172029,0.8048,2802.0,2801.5,2.85552]
[1740327172239,3.65991,2802.0,2801.4,2.85563]
[1740327172548,0.8048,2801.9,2801.1,3.0]
[1740327172695,2.8554,2801.7,2801.2,0.03498344]
[1740327173032,2.85554,2801.6,2801.2,0.03498344]
[1740327173335,2.85554,2801.6,2801.0,2.85605]
[1740327173507,2.8554,2801.7,2801.1,5.89093344]
[1740327173708,0.8048,2801.6,2801.1,3.03498344]
[1740327174339,2.85561,2801.5,2801.1,0.03498344]
[1740327174937,0.8048,2801.6,2801.1,5.89099344]
[1740327175340,2.85591,2801.2,2801.1,0.03498344]
[1740327175540,0.8048,2801.2,2801.1,0.03498344]
[1740327175744,6.29228937,2801.5,2800.8,2.85625]
[1740327176135,6.29228937,2801.5,2800.9,2.85621]
[1740327176315,2.85589,2801.3,2800.6,2.85646]
[1740327176671,2.85589,2801.3,2800.8,3.0]
[1740327178061,3.66052,2801.4,2800.8,3.0]
[1740327178464,3.66052,2801.4,2800.8,5.85623]
[1740327179965,6.51631,2801.4,2800.8,3.0]
[1740327180397,3.66052,2801.4,2800.8,3.0]
[1740327180571,3.66052,2801.4,2800.9,2.85619]
[1740327180749,0.8048,2801.7,2801.2,2.85586]
[1740327181159,0.8048,2801.9,2801.7,2.85533]
[1740327181463,2.85552,2801.6,2801.1,0.7803]
[1740327181648,0.8048,2801.5,2801.0,2.8561]
[1740327181849,0.8048,2801.8,2801.0,0.649269]
[1740327182052,2.85551,2801.6,2800.9,0.7803]
[1740327182265,0.8048,2801.8,2800.9,0.7803]
[1740327182580,0.8048,2801.8,2801.3,3.0]
[1740327182873,3.66017,2801.8,2800.9,0.7803]
[1740327183037,2.8556,2801.6,2801.1,3.0]
[1740327183680,3.66076,2801.2,2800.7,0.7803]
[1740327183880,0.8048,2801.2,2800.8,2.85624]
[1740327184041,0.8048,2801.5,2801.1,2.85593]
[1740327184263,0.8048,2801.5,2801.1,2.85602]
[1740327184488,0.8048,2801.5,2801.3,2.85581]
[1740327184691,5.39,2801.7,2801.4,2.85568]
[1740327184890,0.8048,2801.8,2801.5,2.85561]
[1740327185298,0.8048,2801.8,2801.4,3.0]
[1740327185496,3.66012,2801.8,2801.4,3.0]
[1740327185692,0.8048,2801.8,2801.0,0.7803]
[1740327185891,0.8048,2801.8,2801.6,2.85548]
[1740327186100,0.8048,2801.8,2801.5,2.85555]
[1740327186601,8.24506,2802.1,2801.6,3.0]
[1740327186901,5.39,2802.1,2801.6,3.0]
[1740327187491,8.24501,2802.1,2801.6,3.0]
[1740327187696,5.39,2802.1,2801.6,3.0]
[1740327188003,5.39,2802.1,2801.6,5.85548]
[1740327188175,5.39,2802.1,2801.7,2.85536]
[1740327188501,2.8551,2802.0,2801.5,3.0]
[1740327188667,8.24502,2802.1,2801.5,2.85553]
[1740327189001,8.24506,2802.1,2801.6,3.0]
[1740327189178,0.9176965,2802.2,2801.8,3.0]
[1740327189379,3.7725965,2802.2,2801.6,3.0]
[1740327189705,3.7725965,2802.2,2801.1,4.341078]
[1740327189706,2.85538,2801.8,2801.1,4.341078]
[1740327189862,2.85554,2801.6,2801.1,1.485148]
[1740327190405,2.85538,2801.8,2801.2,2.85591]
[1740327190706,2.85553,2801.6,2801.2,3.0]
[1740327191002,0.7674,2802.0,2801.3,2.85578]
[1740327191003,2.85522,2801.9,2801.3,2.85578]
[1740327191740,2.85531,2801.8,2801.4,3.0]
[1740327192949,2.85542,2801.7,2801.4,3.0]
[1740327194031,3.62385,2801.6,2800.9,3.64713]
[1740327194344,0.7683,2801.6,2800.9,4.561843]
[1740327194544,2.85572,2801.4,2800.9,1.705713]
[1740327194725,0.7683,2801.6,2800.9,4.561873]
[1740327194909,0.7683,2801.6,2801.0,3.0]
[1740327195243,0.7683,2801.6,2800.8,5.23]
[1740327195244,2.63185937,2801.5,2800.8,5.23]
[1740327195423,0.7683,2801.1,2800.5,3.64759]
[1740327195927,0.7683,2801.1,2800.6,2.85651]
[1740327196847,0.7683,2801.1,2800.8,3.0]
[1740327197223,0.7683,2801.1,2800.8,5.85631]
[1740327197419,0.7683,2801.3,2800.8,5.85631]
[1740327197626,5.39,2801.5,2801.0,2.85604]
[1740327197832,2.85569,2801.5,2800.8,5.85628]
[1740327198148,3.89551421,2801.6,2801.0,2.85611]
[1740327198345,2.85562,2801.5,2801.0,2.85611]